[Event "*** Titled Tuesday Blitz"]
[Site "Chess.com"]
[Date "2021.02.02"]
[Round "3"]
[White "FMJoseHerrera"]
[Black "AniJak"]
[Result "0-1"]
[WhiteElo "2490"]
[BlackElo "2288"]
[TimeControl "180+1"]
[EndTime "10:31:41 PST"]
[Termination "AniJak won by checkmate"]

1. Nf3 {[%clk 0:03:00.9]} 1... d5 {[%clk 0:02:59.2]} 2. g3 {[%clk 0:03:00.5]}
2... Nf6 {[%clk 0:02:58.7]} 3. Bg2 {[%clk 0:03:00]} 3... g6 {[%clk 0:02:53.2]}
4. d3 {[%clk 0:02:58.7]} 4... Bg7 {[%clk 0:02:53.5]} 5. Nc3 {[%clk 0:02:58.1]}
5... O-O {[%clk 0:02:53.1]} 6. h4 {[%clk 0:02:56.5]} 6... Bg4 {[%clk 0:02:50.9]}
7. Bg5 {[%clk 0:02:55.6]} 7... h6 {[%clk 0:02:48.8]} 8. Bf4 {[%clk 0:02:52.7]}
8... c6 {[%clk 0:02:38.8]} 9. Qd2 {[%clk 0:02:51.9]} 9... Kh7 {[%clk 0:02:30.8]}
10. h5 {[%clk 0:02:49.8]} 10... g5 {[%clk 0:02:25.5]} 11. Bxg5 {[%clk
0:02:44.6]} 11... Bxf3 {[%clk 0:02:13]} 12. Bxf3 {[%clk 0:01:04.9]} 12... hxg5
{[%clk 0:02:10.8]} 13. h6 {[%clk 0:01:04.8]} 13... Bh8 {[%clk 0:02:10.5]} 14.
Qxg5 {[%clk 0:01:03.9]} 14... Qd7 {[%clk 0:01:41.8]} 15. e4 {[%clk 0:01:00.8]}
15... Rg8 {[%clk 0:01:40.6]} 16. Qd2 {[%clk 0:00:55.1]} 16... dxe4 {[%clk
0:01:32.7]} 17. Nxe4 {[%clk 0:00:54.5]} 17... Nxe4 {[%clk 0:01:32.8]} 18. Bxe4+
{[%clk 0:00:55.2]} 18... f5 {[%clk 0:01:33]} 19. Bf3 {[%clk 0:00:55]} 19... Bxb2
{[%clk 0:01:26.7]} 20. Rb1 {[%clk 0:00:54.5]} 20... Bf6 {[%clk 0:01:25.4]} 21.
Kf1 {[%clk 0:00:54.4]} 21... Na6 {[%clk 0:01:16.6]} 22. Qa5 {[%clk 0:00:53.2]}
22... e5 {[%clk 0:01:06.4]} 23. g4 {[%clk 0:00:39.5]} 23... fxg4 {[%clk
0:00:56.4]} 24. Be4+ {[%clk 0:00:38.9]} 24... Kh8 {[%clk 0:00:56.5]} 25. Kg2
{[%clk 0:00:25.4]} 25... g3 {[%clk 0:00:48.6]} 26. f3 {[%clk 0:00:24.7]} 26...
Qd4 {[%clk 0:00:45.9]} 27. Qd2 {[%clk 0:00:20.1]} 27... Bg5 {[%clk 0:00:43.9]}
28. Rxb7 {[%clk 0:00:18.9]} 28... Qxe4 {[%clk 0:00:37.4]} 29. dxe4 {[%clk
0:00:09.2]} 29... Bxd2 {[%clk 0:00:37]} 30. Rd1 {[%clk 0:00:10.1]} 30... Rad8
{[%clk 0:00:35.3]} 31. Rxa7 {[%clk 0:00:10]} 31... Nb4 {[%clk 0:00:34.2]} 32.
Rb1 {[%clk 0:00:10.9]} 32... Bc3 {[%clk 0:00:24.9]} 33. a3 {[%clk 0:00:10.2]}
33... Rd2+ {[%clk 0:00:24.3]} 34. Kh3 {[%clk 0:00:11.1]} 34... g2 {[%clk
0:00:21]} 35. axb4 {[%clk 0:00:07]} 35... g1=Q {[%clk 0:00:15.8]} 36. Rxg1
{[%clk 0:00:07.6]} 36... Rxg1 {[%clk 0:00:15.2]} 37. b5 {[%clk 0:00:08.4]} 37...
cxb5 {[%clk 0:00:12.9]} 38. Rc7 {[%clk 0:00:09.3]} 38... Bd4 {[%clk 0:00:12.3]}
39. c3 {[%clk 0:00:08.9]} 39... Rdg2 {[%clk 0:00:12]} 40. cxd4 {[%clk
0:00:08.2]} 40... Rg6 {[%clk 0:00:11.6]} 41. Rc8+ {[%clk 0:00:05.4]} 41... Kh7
{[%clk 0:00:11.4]} 42. Rc7+ {[%clk 0:00:06.3]} 42... Kg8 {[%clk 0:00:11.2]} 43.
Rc8+ {[%clk 0:00:06.3]} 43... Kf7 {[%clk 0:00:11.2]} 44. Rc7+ {[%clk 0:00:06.8]}
44... Ke8 {[%clk 0:00:10.4]} 45. Rh7 {[%clk 0:00:06.4]} 45... Rh1# {[%clk
0:00:10.3]} 0-1

[Event "*** Titled Tuesday Blitz"]
[Site "Chess.com"]
[Date "2021.02.02"]
[Round "3"]
[White "Papullon"]
[Black "sbouchet"]
[Result "0-1"]
[WhiteElo "2133"]
[BlackElo "2345"]
[TimeControl "180+1"]
[EndTime "10:31:41 PST"]
[Termination "sbouchet won on time"]

1. d4 {[%clk 0:03:00.9]} 1... Nf6 {[%clk 0:02:59]} 2. Bg5 {[%clk 0:03:00]} 2...
g6 {[%clk 0:02:57.4]} 3. Bxf6 {[%clk 0:02:59.6]} 3... exf6 {[%clk 0:02:57.3]} 4.
h4 {[%clk 0:02:59.3]} 4... h5 {[%clk 0:02:54.6]} 5. e3 {[%clk 0:02:57.2]} 5...
f5 {[%clk 0:02:54]} 6. g3 {[%clk 0:02:57.2]} 6... Bg7 {[%clk 0:02:51.8]} 7. Bg2
{[%clk 0:02:56.5]} 7... c6 {[%clk 0:02:51.5]} 8. c4 {[%clk 0:02:53.3]} 8... O-O
{[%clk 0:02:47.5]} 9. Nc3 {[%clk 0:02:52.6]} 9... d6 {[%clk 0:02:47.9]} 10. Nge2
{[%clk 0:02:52.2]} 10... Nd7 {[%clk 0:02:48.2]} 11. O-O {[%clk 0:02:50.3]} 11...
Nf6 {[%clk 0:02:48.7]} 12. Nf4 {[%clk 0:02:48.7]} 12... Qe7 {[%clk 0:02:45]} 13.
Qd3 {[%clk 0:02:41.5]} 13... Bd7 {[%clk 0:02:43.6]} 14. b4 {[%clk 0:02:41]}
14... Rac8 {[%clk 0:02:36.6]} 15. a4 {[%clk 0:02:39.3]} 15... Rfe8 {[%clk
0:02:34.7]} 16. b5 {[%clk 0:02:30.9]} 16... Ne4 {[%clk 0:02:33]} 17. Rfb1 {[%clk
0:02:07.7]} 17... Rc7 {[%clk 0:02:03]} 18. bxc6 {[%clk 0:02:06.7]} 18... bxc6
{[%clk 0:02:03.9]} 19. a5 {[%clk 0:01:53.3]} 19... Bh6 {[%clk 0:01:27.5]} 20. a6
{[%clk 0:01:41.8]} 20... Bxf4 {[%clk 0:01:26.9]} 21. exf4 {[%clk 0:01:41.9]}
21... Qf6 {[%clk 0:01:25.3]} 22. Nxe4 {[%clk 0:01:28.4]} 22... fxe4 {[%clk
0:01:23.7]} 23. Bxe4 {[%clk 0:01:28.2]} 23... Bh3 {[%clk 0:01:19]} 24. Bg2
{[%clk 0:01:21.6]} 24... Bf5 {[%clk 0:01:18]} 25. Qc3 {[%clk 0:00:54.8]} 25...
Bxb1 {[%clk 0:01:16.7]} 26. Rxb1 {[%clk 0:00:55]} 26... c5 {[%clk 0:01:15.3]}
27. Rb7 {[%clk 0:00:53.1]} 27... Ree7 {[%clk 0:01:12.6]} 28. Bd5 {[%clk
0:00:41.9]} 28... Qxd4 {[%clk 0:01:10.2]} 29. Qa5 {[%clk 0:00:41.3]} 29... Rcd7
{[%clk 0:01:00.5]} 30. Bc6 {[%clk 0:00:39.9]} 30... Qd1+ {[%clk 0:00:54.8]} 31.
Kg2 {[%clk 0:00:38.9]} 31... Re1 {[%clk 0:00:33.5]} 32. Qxe1 {[%clk 0:00:21.9]}
32... Qxe1 {[%clk 0:00:34.4]} 33. Rxd7 {[%clk 0:00:21.1]} 33... Qa5 {[%clk
0:00:25.4]} 34. Rxa7 {[%clk 0:00:17.3]} 34... Kg7 {[%clk 0:00:25.5]} 35. Bd5
{[%clk 0:00:16.8]} 35... Kh6 {[%clk 0:00:23.8]} 36. Rxf7 {[%clk 0:00:10.5]}
36... Qxa6 {[%clk 0:00:23.3]} 37. Rf6 {[%clk 0:00:09.7]} 37... Kg7 {[%clk
0:00:21.6]} 38. Re6 {[%clk 0:00:09.5]} 38... Qb6 {[%clk 0:00:19.2]} 39. Be4
{[%clk 0:00:07.7]} 39... Qb4 {[%clk 0:00:17.6]} 40. Rxg6+ {[%clk 0:00:05.3]}
40... Kf7 {[%clk 0:00:18.2]} 41. Rg5 {[%clk 0:00:02.2]} 41... Kf6 {[%clk
0:00:16]} 42. Bd5 {[%clk 0:00:01.8]} 42... Qe1 {[%clk 0:00:13]} 43. Rxh5 {[%clk
0:00:01.9]} 43... Qe2 {[%clk 0:00:13.4]} 44. Rh6+ {[%clk 0:00:01.7]} 44... Kg7
{[%clk 0:00:13.9]} 45. Rh5 {[%clk 0:00:01.1]} 45... Qxh5 {[%clk 0:00:13.3]} 0-1

[Event "*** Titled Tuesday Blitz"]
[Site "Chess.com"]
[Date "2021.02.02"]
[Round "3"]
[White "The_Machine04"]
[Black "TeukkaSalama"]
[Result "0-1"]
[WhiteElo "2519"]
[BlackElo "2366"]
[TimeControl "180+1"]
[EndTime "10:31:42 PST"]
[Termination "TeukkaSalama won by checkmate"]

1. d4 {[%clk 0:03:00.9]} 1... d6 {[%clk 0:02:59.6]} 2. Nf3 {[%clk 0:02:53.8]}
2... Nf6 {[%clk 0:02:59.4]} 3. Nbd2 {[%clk 0:02:52.7]} 3... Nbd7 {[%clk
0:02:56.9]} 4. e4 {[%clk 0:02:51.9]} 4... e5 {[%clk 0:02:57.5]} 5. dxe5 {[%clk
0:02:50.8]} 5... dxe5 {[%clk 0:02:57.2]} 6. c3 {[%clk 0:02:50.3]} 6... Bc5
{[%clk 0:02:52.1]} 7. Bc4 {[%clk 0:02:49.3]} 7... O-O {[%clk 0:02:51.1]} 8. Qe2
{[%clk 0:02:47.4]} 8... c6 {[%clk 0:02:46.7]} 9. a4 {[%clk 0:02:46.8]} 9... a5
{[%clk 0:02:43.7]} 10. O-O {[%clk 0:02:46.4]} 10... Re8 {[%clk 0:02:42]} 11. Rd1
{[%clk 0:02:46.2]} 11... Qc7 {[%clk 0:02:38.6]} 12. Nf1 {[%clk 0:02:44.5]} 12...
h6 {[%clk 0:02:34.8]} 13. b3 {[%clk 0:02:43]} 13... Nb6 {[%clk 0:02:25.3]} 14.
N3d2 {[%clk 0:02:36.6]} 14... Nxc4 {[%clk 0:02:18.3]} 15. Nxc4 {[%clk
0:02:37.5]} 15... Be6 {[%clk 0:02:15.3]} 16. Ba3 {[%clk 0:02:20.2]} 16... Bg4
{[%clk 0:01:42.4]} 17. Qxg4 {[%clk 0:01:42]} 17... Nxg4 {[%clk 0:01:40.8]} 18.
Bxc5 {[%clk 0:01:41.7]} 18... b5 {[%clk 0:01:25.5]} 19. Nb6 {[%clk 0:01:13.6]}
19... Rad8 {[%clk 0:01:20.5]} 20. axb5 {[%clk 0:01:02.6]} 20... cxb5 {[%clk
0:01:21.4]} 21. b4 {[%clk 0:01:02.1]} 21... a4 {[%clk 0:01:19.7]} 22. Nd5 {[%clk
0:01:00.5]} 22... Qb7 {[%clk 0:00:56.8]} 23. f3 {[%clk 0:00:57.4]} 23... Nf6
{[%clk 0:00:56]} 24. Nxf6+ {[%clk 0:00:38.6]} 24... gxf6 {[%clk 0:00:56.9]} 25.
Ne3 {[%clk 0:00:38.9]} 25... Rxd1+ {[%clk 0:00:57]} 26. Rxd1 {[%clk 0:00:38.5]}
26... a3 {[%clk 0:00:57.5]} 27. Ra1 {[%clk 0:00:28.9]} 27... Ra8 {[%clk
0:00:56.8]} 28. Ra2 {[%clk 0:00:23.6]} 28... Qd7 {[%clk 0:00:49.8]} 29. Nd5
{[%clk 0:00:20.6]} 29... Kg7 {[%clk 0:00:50.3]} 30. Kf2 {[%clk 0:00:17.6]} 30...
f5 {[%clk 0:00:46.6]} 31. Nb6 {[%clk 0:00:15]} 31... Qe6 {[%clk 0:00:39]} 32.
Nd5 {[%clk 0:00:14.5]} 32... fxe4 {[%clk 0:00:37.6]} 33. fxe4 {[%clk 0:00:15.4]}
33... f5 {[%clk 0:00:30]} 34. c4 {[%clk 0:00:13.8]} 34... fxe4 {[%clk
0:00:25.2]} 35. Kg1 {[%clk 0:00:08.1]} 35... bxc4 {[%clk 0:00:25.2]} 36. Nb6
{[%clk 0:00:08]} 36... c3 {[%clk 0:00:24.7]} 37. Ra1 {[%clk 0:00:05.7]} 37...
Rd8 {[%clk 0:00:15.2]} 38. Rxa3 {[%clk 0:00:03.2]} 38... c2 {[%clk 0:00:15.7]}
39. Rc3 {[%clk 0:00:02.7]} 39... Rd1+ {[%clk 0:00:15.1]} 40. Kf2 {[%clk
0:00:03.1]} 40... c1=Q {[%clk 0:00:16]} 41. Rxc1 {[%clk 0:00:03.3]} 41... Rxc1
{[%clk 0:00:16.9]} 42. Ke3 {[%clk 0:00:03.9]} 42... Qf5 {[%clk 0:00:16.3]} 43.
Kd2 {[%clk 0:00:04.2]} 43... Qf4+ {[%clk 0:00:16.1]} 44. Be3 {[%clk 0:00:03.7]}
44... Qf1 {[%clk 0:00:16.2]} 45. Nd5 {[%clk 0:00:02.3]} 45... Qe1# {[%clk
0:00:16.6]} 0-1

[Event "*** Titled Tuesday Blitz"]
[Site "Chess.com"]
[Date "2021.02.02"]
[Round "3"]
[White "DFeco"]
[Black "Tekushka"]
[Result "0-1"]
[WhiteElo "2235"]
[BlackElo "2457"]
[TimeControl "180+1"]
[EndTime "10:31:42 PST"]
[Termination "Tekushka won by resignation"]

1. c4 {[%clk 0:03:00.9]} 1... e5 {[%clk 0:02:59.6]} 2. g3 {[%clk 0:03:01.1]}
2... Nf6 {[%clk 0:02:55.9]} 3. Bg2 {[%clk 0:03:01.1]} 3... c6 {[%clk 0:02:56.3]}
4. d4 {[%clk 0:02:58.9]} 4... e4 {[%clk 0:02:55.5]} 5. Nc3 {[%clk 0:02:58.2]}
5... d5 {[%clk 0:02:54.5]} 6. cxd5 {[%clk 0:02:58.7]} 6... cxd5 {[%clk
0:02:53.9]} 7. f3 {[%clk 0:02:59.1]} 7... exf3 {[%clk 0:02:48.1]} 8. Nxf3 {[%clk
0:02:57.9]} 8... h6 {[%clk 0:02:45.6]} 9. O-O {[%clk 0:02:57.1]} 9... Be7 {[%clk
0:02:41.9]} 10. Ne5 {[%clk 0:02:56.3]} 10... Nc6 {[%clk 0:02:34.8]} 11. e3
{[%clk 0:02:52]} 11... O-O {[%clk 0:02:30.8]} 12. Qb3 {[%clk 0:02:46.9]} 12...
Na5 {[%clk 0:02:30.4]} 13. Qc2 {[%clk 0:02:31.7]} 13... Be6 {[%clk 0:02:29.2]}
14. b3 {[%clk 0:02:22.8]} 14... Rc8 {[%clk 0:02:27.9]} 15. Qd3 {[%clk 0:02:22]}
15... Bb4 {[%clk 0:02:01.7]} 16. Bb2 {[%clk 0:02:15.8]} 16... Bxc3 {[%clk
0:01:55.3]} 17. Bxc3 {[%clk 0:02:14.3]} 17... Nc6 {[%clk 0:01:55.4]} 18. Rac1
{[%clk 0:02:04.3]} 18... Nxe5 {[%clk 0:01:40.2]} 19. dxe5 {[%clk 0:01:55.7]}
19... Ne4 {[%clk 0:01:41.1]} 20. Bxe4 {[%clk 0:01:50]} 20... dxe4 {[%clk
0:01:40.7]} 21. Qxe4 {[%clk 0:01:50.4]} 21... Qb6 {[%clk 0:01:24.4]} 22. Bd4
{[%clk 0:01:44.4]} 22... Qa6 {[%clk 0:01:24.3]} 23. Bc5 {[%clk 0:01:14.8]} 23...
Rfd8 {[%clk 0:01:23.8]} 24. Bd6 {[%clk 0:01:13.6]} 24... Qxa2 {[%clk 0:01:15.3]}
25. Qxb7 {[%clk 0:01:08]} 25... Rxc1 {[%clk 0:00:41.8]} 26. Rxc1 {[%clk
0:01:02.6]} 26... Qxb3 {[%clk 0:00:29]} 27. Qxb3 {[%clk 0:01:00.4]} 27... Bxb3
{[%clk 0:00:28.8]} 28. Ra1 {[%clk 0:00:59.6]} 28... Rc8 {[%clk 0:00:20.6]} 29.
Rxa7 {[%clk 0:00:56.4]} 29... Rc1+ {[%clk 0:00:20]} 30. Kf2 {[%clk 0:00:56.1]}
30... Rc2+ {[%clk 0:00:20.4]} 31. Ke1 {[%clk 0:00:55.8]} 31... Rxh2 {[%clk
0:00:18.9]} 32. Ra8+ {[%clk 0:00:54.3]} 32... Kh7 {[%clk 0:00:18.3]} 33. Ra3
{[%clk 0:00:53.4]} 33... Be6 {[%clk 0:00:17.8]} 34. e4 {[%clk 0:00:52.4]} 34...
Kg6 {[%clk 0:00:17.2]} 35. Rf3 {[%clk 0:00:51]} 35... Kg5 {[%clk 0:00:16.3]} 36.
Kf1 {[%clk 0:00:48.1]} 36... Kg4 {[%clk 0:00:15.7]} 37. Re3 {[%clk 0:00:47.7]}
37... Ra2 {[%clk 0:00:15]} 38. Kg1 {[%clk 0:00:46.5]} 38... Bc4 {[%clk
0:00:14.7]} 39. Bf8 {[%clk 0:00:44.9]} 39... Kh3 {[%clk 0:00:12.5]} 40. g4+
{[%clk 0:00:43]} 40... Kxg4 {[%clk 0:00:12.4]} 41. Bxg7 {[%clk 0:00:43.6]} 41...
h5 {[%clk 0:00:12.5]} 42. Bf6 {[%clk 0:00:42.5]} 42... h4 {[%clk 0:00:12.5]} 43.
Kh1 {[%clk 0:00:40]} 43... h3 {[%clk 0:00:11.8]} 44. e6 {[%clk 0:00:35.4]} 44...
Bxe6 {[%clk 0:00:10.6]} 45. Be5 {[%clk 0:00:35.4]} 45... Bc4 {[%clk 0:00:10.4]}
46. Rg3+ {[%clk 0:00:34.8]} 46... Kh4 {[%clk 0:00:09]} 47. Rg7 {[%clk
0:00:33.3]} 47... Re2 {[%clk 0:00:06.8]} 48. Bf6+ {[%clk 0:00:32.7]} 48... Kh5
{[%clk 0:00:06.6]} 49. Rg5+ {[%clk 0:00:32.6]} 49... Kh6 {[%clk 0:00:06.4]} 50.
e5 {[%clk 0:00:32.4]} 50... Be6 {[%clk 0:00:06.2]} 51. Rg3 {[%clk 0:00:26.8]}
51... Bd5+ {[%clk 0:00:06.1]} 52. Kg1 {[%clk 0:00:25]} 52... h2+ {[%clk
0:00:06.4]} 0-1

[Event "*** Titled Tuesday Blitz"]
[Site "Chess.com"]
[Date "2021.02.02"]
[Round "3"]
[White "LyonBeast"]
[Black "VitaliyBernadskiy"]
[Result "1-0"]
[WhiteElo "3101"]
[BlackElo "2720"]
[TimeControl "180+1"]
[EndTime "10:31:44 PST"]
[Termination "LyonBeast won on time"]

1. b3 {[%clk 0:03:00.9]} 1... a5 {[%clk 0:02:58.7]} 2. Nc3 {[%clk 0:02:51.5]}
2... d5 {[%clk 0:02:57.4]} 3. Nf3 {[%clk 0:02:49.5]} 3... Nf6 {[%clk 0:02:46.5]}
4. e3 {[%clk 0:02:48]} 4... g6 {[%clk 0:02:42]} 5. Bb2 {[%clk 0:02:46.7]} 5...
Bg7 {[%clk 0:02:42.4]} 6. d4 {[%clk 0:02:42.9]} 6... O-O {[%clk 0:02:41.1]} 7.
Bd3 {[%clk 0:02:41.7]} 7... Bg4 {[%clk 0:02:39.9]} 8. h3 {[%clk 0:02:40.1]} 8...
Bxf3 {[%clk 0:02:40.1]} 9. Qxf3 {[%clk 0:02:41]} 9... Nc6 {[%clk 0:02:38.3]} 10.
Na4 {[%clk 0:02:18.4]} 10... Qd6 {[%clk 0:01:38]} 11. Qg3 {[%clk 0:01:55.1]}
11... Rfe8 {[%clk 0:01:34.6]} 12. Qxd6 {[%clk 0:01:50.1]} 12... exd6 {[%clk
0:01:34.9]} 13. a3 {[%clk 0:01:34.9]} 13... Na7 {[%clk 0:00:57.5]} 14. O-O
{[%clk 0:01:14.8]} 14... b5 {[%clk 0:00:56.3]} 15. Nc3 {[%clk 0:01:14.5]} 15...
c6 {[%clk 0:00:54.6]} 16. Rac1 {[%clk 0:01:06.8]} 16... Rab8 {[%clk 0:00:47.1]}
17. Ne2 {[%clk 0:01:00.7]} 17... Nc8 {[%clk 0:00:44.3]} 18. Rfd1 {[%clk
0:00:50.8]} 18... Nb6 {[%clk 0:00:43.8]} 19. Bc3 {[%clk 0:00:50.3]} 19... Ra8
{[%clk 0:00:43.4]} 20. Be1 {[%clk 0:00:41.6]} 20... h5 {[%clk 0:00:43.1]} 21.
Kf1 {[%clk 0:00:38.5]} 21... Bf8 {[%clk 0:00:39.8]} 22. Ng1 {[%clk 0:00:38.8]}
22... a4 {[%clk 0:00:32.9]} 23. Bb4 {[%clk 0:00:36.8]} 23... Reb8 {[%clk
0:00:31.2]} 24. Nf3 {[%clk 0:00:30.5]} 24... Ne8 {[%clk 0:00:19]} 25. Be1 {[%clk
0:00:23.9]} 25... axb3 {[%clk 0:00:17.6]} 26. cxb3 {[%clk 0:00:24.8]} 26... Rc8
{[%clk 0:00:17.2]} 27. Ra1 {[%clk 0:00:22.6]} 27... Nc7 {[%clk 0:00:17.2]} 28.
Rdc1 {[%clk 0:00:21.1]} 28... Ne6 {[%clk 0:00:17.4]} 29. Bc3 {[%clk 0:00:18.8]}
29... c5 {[%clk 0:00:16.7]} 30. Bxb5 {[%clk 0:00:18.4]} 30... c4 {[%clk
0:00:12.7]} 31. bxc4 {[%clk 0:00:18.5]} 31... dxc4 {[%clk 0:00:12.5]} 32. a4
{[%clk 0:00:18.8]} 32... Nd5 {[%clk 0:00:12.4]} 33. Be1 {[%clk 0:00:17.2]} 33...
c3 {[%clk 0:00:10.8]} 34. e4 {[%clk 0:00:17.6]} 34... Nf6 {[%clk 0:00:10.1]} 35.
Bd3 {[%clk 0:00:15.7]} 35... g5 {[%clk 0:00:06.2]} 36. Bxc3 {[%clk 0:00:13.2]}
36... g4 {[%clk 0:00:06.5]} 37. hxg4 {[%clk 0:00:13.4]} 37... hxg4 {[%clk
0:00:07.4]} 38. Nh4 {[%clk 0:00:14.1]} 38... Nf4 {[%clk 0:00:07.4]} 39. Bb5
{[%clk 0:00:11.7]} 39... Nxe4 {[%clk 0:00:07.3]} 40. Be1 {[%clk 0:00:11.8]}
40... Ne6 {[%clk 0:00:04.5]} 41. Nf5 {[%clk 0:00:11.3]} 41... Rxc1 {[%clk
0:00:01.1]} 42. Rxc1 {[%clk 0:00:10.9]} 42... d5 {[%clk 0:00:01.4]} 43. f3
{[%clk 0:00:08.6]} 1-0

[Event "*** Titled Tuesday Blitz"]
[Site "Chess.com"]
[Date "2021.02.02"]
[Round "3"]
[White "Malysch"]
[Black "kagg1125"]
[Result "0-1"]
[WhiteElo "2391"]
[BlackElo "2585"]
[TimeControl "180+1"]
[EndTime "10:31:50 PST"]
[Termination "kagg1125 won by resignation"]

1. d4 {[%clk 0:03:00.9]} 1... d5 {[%clk 0:02:59.2]} 2. c4 {[%clk 0:03:00.9]}
2... c6 {[%clk 0:02:59.5]} 3. Nf3 {[%clk 0:03:00.5]} 3... Nf6 {[%clk 0:02:59.8]}
4. Qc2 {[%clk 0:03:00.6]} 4... dxc4 {[%clk 0:02:53.1]} 5. Qxc4 {[%clk
0:03:01.5]} 5... Bf5 {[%clk 0:02:53]} 6. g3 {[%clk 0:03:01.1]} 6... e6 {[%clk
0:02:52.3]} 7. Bg2 {[%clk 0:03:01.3]} 7... Nbd7 {[%clk 0:02:52.5]} 8. O-O {[%clk
0:03:01.4]} 8... Be7 {[%clk 0:02:49.7]} 9. Nc3 {[%clk 0:03:01.6]} 9... O-O
{[%clk 0:02:49.4]} 10. Re1 {[%clk 0:03:01.8]} 10... Ne4 {[%clk 0:02:46.9]} 11.
Qb3 {[%clk 0:03:01.5]} 11... Qb6 {[%clk 0:02:45.5]} 12. Nh4 {[%clk 0:03:01.8]}
12... Bxh4 {[%clk 0:02:34.2]} 13. gxh4 {[%clk 0:03:02.7]} 13... Ndf6 {[%clk
0:02:24.5]} 14. f3 {[%clk 0:03:01.1]} 14... Nxc3 {[%clk 0:02:03.9]} 15. bxc3
{[%clk 0:03:02]} 15... Qc7 {[%clk 0:01:51.8]} 16. e4 {[%clk 0:03:00.3]} 16...
Bg6 {[%clk 0:01:51.9]} 17. Be3 {[%clk 0:02:59.2]} 17... Nh5 {[%clk 0:01:50]} 18.
Rab1 {[%clk 0:02:24]} 18... b6 {[%clk 0:01:47.3]} 19. Qc2 {[%clk 0:02:24.2]}
19... Nf4 {[%clk 0:01:35.9]} 20. Bf1 {[%clk 0:02:23]} 20... e5 {[%clk
0:01:23.8]} 21. Bxf4 {[%clk 0:02:18]} 21... exf4 {[%clk 0:01:22.7]} 22. Bh3
{[%clk 0:02:17.8]} 22... c5 {[%clk 0:01:19.3]} 23. Qf2 {[%clk 0:02:15.5]} 23...
Rad8 {[%clk 0:01:16.7]} 24. d5 {[%clk 0:02:02.7]} 24... Qe5 {[%clk 0:01:09.5]}
25. c4 {[%clk 0:01:59.8]} 25... h5 {[%clk 0:01:04.4]} 26. Qb2 {[%clk 0:01:54.8]}
26... Qe7 {[%clk 0:01:02.2]} 27. Qf2 {[%clk 0:01:51.2]} 27... Qe5 {[%clk
0:00:58.3]} 28. Qb2 {[%clk 0:01:49.4]} 28... Qc7 {[%clk 0:00:49.9]} 29. Rbd1
{[%clk 0:01:44.7]} 29... Rfe8 {[%clk 0:00:49.9]} 30. e5 {[%clk 0:01:43.1]} 30...
b5 {[%clk 0:00:34.5]} 31. Qxb5 {[%clk 0:01:30.5]} 31... Rxe5 {[%clk 0:00:33.6]}
32. Rxe5 {[%clk 0:01:30.3]} 32... Qxe5 {[%clk 0:00:34.5]} 33. Qxc5 {[%clk
0:01:29.5]} 33... Rb8 {[%clk 0:00:21.8]} 34. Qd4 {[%clk 0:01:19.7]} 34... Qe2
{[%clk 0:00:20]} 35. d6 {[%clk 0:01:12.6]} 35... Rb2 {[%clk 0:00:18]} 36. Qxb2
{[%clk 0:01:10.2]} 36... Qxd1+ {[%clk 0:00:18.2]} 37. Kf2 {[%clk 0:01:07.5]}
37... Qxd6 {[%clk 0:00:18.8]} 38. Qc3 {[%clk 0:01:05.4]} 38... Qc5+ {[%clk
0:00:18.3]} 39. Ke2 {[%clk 0:01:05]} 39... Qg1 {[%clk 0:00:16.5]} 40. Bf1 {[%clk
0:00:59.2]} 40... Qxh2+ {[%clk 0:00:16.7]} 41. Ke1 {[%clk 0:00:58]} 41... Qxh4+
{[%clk 0:00:16.5]} 42. Kd2 {[%clk 0:00:56.3]} 42... Qd8+ {[%clk 0:00:16]} 43.
Kc1 {[%clk 0:00:53.4]} 43... Qb8 {[%clk 0:00:13.9]} 44. c5 {[%clk 0:00:52.7]}
44... Qb1+ {[%clk 0:00:13.6]} 45. Kd2 {[%clk 0:00:53.6]} 45... Qxf1 {[%clk
0:00:14.1]} 46. c6 {[%clk 0:00:53.2]} 46... Bf5 {[%clk 0:00:11.8]} 47. c7 {[%clk
0:00:51.3]} 47... Qg2+ {[%clk 0:00:10.6]} 48. Ke1 {[%clk 0:00:49.1]} 48... Qg6
{[%clk 0:00:11]} 49. c8=Q+ {[%clk 0:00:46.4]} 49... Bxc8 {[%clk 0:00:11.1]} 50.
Qxc8+ {[%clk 0:00:46.9]} 50... Kh7 {[%clk 0:00:12]} 51. Qc5 {[%clk 0:00:42.4]}
51... a6 {[%clk 0:00:12.2]} 52. Qe5 {[%clk 0:00:40.6]} 52... Qe6 {[%clk
0:00:11.9]} 0-1